bitfinex/quotes_ETHUSD_20250318
["timestamp","ask_amount","ask_price","bid_price","bid_amount"]
[1742302486642,7.68033156,1903.8,1903.7,5.25281]
[1742302486848,12.63833156,1903.8,1903.7,5.25281]
[1742302488076,9.63833156,1903.8,1903.7,5.25281]
[1742302489457,12.63733156,1903.8,1903.7,5.25281]
[1742302493765,13.17263156,1903.8,1903.7,5.25281]
[1742302496560,12.63733156,1903.8,1903.7,5.25281]
[1742302496764,7.68033156,1903.8,1903.7,5.25281]
[1742302496940,12.63733156,1903.8,1903.7,5.25281]
[1742302499877,13.17263156,1903.8,1903.7,5.25281]
[1742302500235,13.17263156,1903.8,1903.6,5.25308]
[1742302500775,13.17263156,1903.8,1903.6,10.50617]
[1742302501081,3.0,1903.7,1903.6,5.25308]
[1742302502776,3.0,1903.7,1903.5,10.5068]
[1742302502978,10.17263156,1903.8,1903.5,10.5068]
[1742302502979,7.68033156,1903.6,1903.5,10.5068]
[1742302503788,8.21563156,1903.6,1903.4,5.25363]
[1742302503945,13.45889472,1903.5,1903.3,5.25401]
[1742302504376,7.68033156,1903.4,1903.3,5.25394]
[1742302504942,7.68033156,1903.4,1903.3,6.06704]
[1742302505159,7.68033156,1903.4,1903.3,5.25394]
[1742302510079,12.63733156,1903.4,1903.3,5.25394]
[1742302514955,12.63733156,1903.4,1903.3,40.25394]
[1742302515285,12.63733156,1903.4,1903.3,5.25394]
[1742302517781,3.0,1903.4,1903.3,5.25394]
[1742302517984,4.68033156,1903.6,1903.5,6.03666]
[1742302518188,12.63833156,1903.6,1903.5,6.03666]
[1742302518360,9.63833156,1903.6,1903.5,7.16569]
[1742302519675,4.68033156,1903.6,1903.5,7.16569]
[1742302522965,9.63833156,1903.7,1903.6,5.2532]
[1742302523182,12.63833156,1903.7,1903.6,5.2532]
[1742302523892,13.17363156,1903.7,1903.6,5.2532]
[1742302524084,13.17363156,1903.7,1903.6,5.11568072]
[1742302524990,13.17363156,1903.7,1903.5,5.25336]
[1742302525198,13.17363156,1903.7,1903.5,5.25334]
[1742302525360,13.17363156,1903.7,1903.6,5.2532]
[1742302526291,12.63833156,1903.7,1903.6,5.2532]
[1742302532500,0.5353,1903.4,1903.1,5.25436]
[1742302532666,3.0,1903.2,1903.1,5.25436]
[1742302532870,4.957,1903.3,1903.1,10.50876]
[1742302533067,3.0,1903.2,1903.1,5.25436]
[1742302534702,5.25436,1903.1,1903.0,5.25468]
[1742302534897,3.0,1903.2,1903.0,5.25468]
[1742302535074,4.68033156,1903.1,1903.0,5.25468]
[1742302535272,8.60758416,1903.1,1902.9,5.25508]
[1742302535481,4.957,1903.0,1902.9,5.25508]
[1742302535672,3.0,1902.9,1902.8,5.2553]
[1742302535888,7.68033156,1902.9,1902.8,5.2553]
[1742302536092,7.68033156,1902.9,1902.7,5.25566]
[1742302536263,3.0,1902.8,1902.7,5.25566]
[1742302538403,3.76803316,1902.8,1902.5,10.5123]
[1742302538614,12.63833156,1902.7,1902.5,5.2561]
[1742302540302,12.63833156,1902.7,1902.6,5.25596]
[1742302541324,7.68033156,1902.7,1902.6,5.25596]
[1742302541601,12.63833156,1902.7,1902.6,5.25596]
[1742302546921,13.17363156,1902.7,1902.6,5.25596]
[1742302550094,3.03414,1902.6,1902.5,10.5122]
[1742302550422,13.17363156,1902.7,1902.5,5.2561]
[1742302550595,13.17363156,1902.7,1902.4,5.25633]
[1742302551112,12.36066312,1902.5,1902.3,5.25678]
[1742302551278,4.959,1902.4,1902.3,5.25678]
[1742302551524,5.35918551,1902.4,1902.3,5.25678]
[1742302551714,10.03951707,1902.4,1902.3,5.25678]
[1742302552024,3.0,1902.3,1902.2,5.25706]
[1742302552384,7.68033156,1902.3,1902.2,5.25706]
[1742302554427,7.68033156,1902.3,1902.2,6.08126]
[1742302554732,7.68033156,1902.3,1902.2,7.215115]
[1742302555280,7.68033156,1902.3,1902.2,6.08126]
[1742302556283,7.68033156,1902.3,1902.2,5.25706]
[1742302556693,3.0,1902.3,1902.2,5.25706]
[1742302560431,7.68033156,1902.3,1902.2,5.25706]
[1742302561143,7.68033156,1902.3,1902.1,5.25729]
[1742302561144,3.925001,1902.2,1902.1,5.25729]
[1742302561434,0.76803316,1902.2,1902.1,5.25729]
[1742302563005,8.161272,1902.1,1902.0,5.25758]
[1742302563207,7.96,1902.1,1902.0,5.25758]
[1742302563760,13.45168638,1902.1,1901.9,5.05073466]
[1742302563955,7.68033156,1902.0,1901.9,5.05073466]
[1742302564252,3.0,1901.8,1901.7,5.25832]
[1742302564416,8.72803316,1901.8,1901.7,5.25832]
[1742302564804,8.72803316,1901.8,1901.6,5.25861]
[1742302564805,13.40836472,1901.8,1901.6,5.25861]
[1742302565032,12.89596312,1901.7,1901.5,5.25889]
[1742302565250,4.68033156,1901.6,1901.5,5.25889]
[1742302566033,5.06739211,1901.6,1901.5,5.25889]
[1742302566913,5.87413132,1901.6,1901.5,5.25889]
[1742302567509,4.68033156,1901.6,1901.5,6.04619]
[1742302568611,9.1731,1901.4,1901.2,5.2598]
[1742302568928,12.65833156,1901.3,1901.1,5.26008]
[1742302569126,13.19363156,1901.3,1901.0,5.26029]
[1742302569439,3.0,1901.0,1900.9,5.26058]
[1742302570040,3.0,1901.0,1900.8,5.2608]
[1742302570249,12.67133156,1900.9,1900.8,5.2608]
[1742302570628,3.0,1900.7,1900.6,5.74972418]
[1742302570826,3.0,1900.7,1900.6,5.26124]
[1742302570827,7.68033156,1900.7,1900.6,5.26124]
[1742302574853,7.68033156,1900.7,1900.6,6.08314]
[1742302579048,4.68033156,1900.9,1900.8,5.26094]
[1742302579234,7.68033156,1900.9,1900.8,5.26094]
[1742302579621,4.68033156,1900.9,1900.8,7.091544]
[1742302580556,4.68033156,1900.9,1900.8,6.03934]
[1742302582767,4.68033156,1900.9,1900.8,5.26094]
[1742302593111,4.985,1900.9,1900.8,6.06264]
[1742302593623,4.68033156,1901.0,1900.9,5.26066]
[1742302596334,1.56e-06,1901.0,1900.9,5.26066]
[1742302596545,20.9363,1901.4,1901.3,5.25955]
[1742302596805,25.9283,1901.4,1901.3,5.25955]
[1742302597511,30.47253875,1901.4,1901.3,5.25955]
[1742302597662,27.07233156,1901.4,1901.3,5.25955]
[1742302598098,22.08133156,1901.4,1901.3,5.25955]
[1742302598297,27.07633156,1901.4,1901.3,5.25955]
[1742302600999,27.48048314,1901.4,1901.3,5.25955]
[1742302601210,3.5353,1901.3,1901.1,5.26002]
[1742302601372,7.68033156,1901.2,1901.1,5.26002]
[1742302602301,3.0,1901.1,1901.0,10.52056]
[1742302603702,4.68033156,1901.2,1901.1,5.26011]
[1742302603901,7.68033156,1901.2,1901.1,5.26011]
[1742302604607,3.0,1901.1,1901.0,5.26027]
[1742302604772,3.0,1901.1,1901.0,10.52056]
[1742302605104,3.0,1901.1,1901.0,5.26027]
[1742302605800,4.68033156,1901.2,1900.9,5.26062]
[1742302606105,8.21563156,1901.0,1900.9,5.26062]
[1742302606404,13.21163156,1901.0,1900.9,5.26062]
[1742302607000,7.996,1901.0,1900.9,5.26062]
[1742302607173,12.67633156,1901.0,1900.9,5.26062]
[1742302608105,12.67633156,1901.0,1900.9,6.06642]
[1742302609105,12.67633156,1901.0,1900.9,5.26062]
[1742302611300,12.67233156,1901.0,1900.9,5.26062]
[1742302624199,8.66216783,1901.0,1900.8,5.26094]
[1742302624398,3.0,1901.0,1900.9,5.26066]
[1742302624916,3.0,1901.0,1900.9,40.26066]
[1742302625426,3.0,1901.0,1900.9,5.26066]
[1742302627224,7.971,1901.0,1900.9,5.26066]
[1742302633830,4.971,1901.0,1900.9,5.26066]
[1742302634922,4.68033156,1901.1,1901.0,6.05198]
[1742302635124,9.64433156,1901.1,1901.0,6.05198]
[1742302638432,12.64433156,1901.1,1901.0,6.05198]
[1742302638631,12.64433156,1901.1,1901.0,5.26038]
[1742302640140,7.964,1901.1,1901.0,5.26038]
[1742302640343,12.64433156,1901.1,1901.0,5.26038]
[1742302645419,12.64433156,1901.1,1900.3,5.26222]
[1742302645420,3.0,1900.9,1900.8,10.52168]
[1742302645618,7.68033156,1900.9,1900.8,5.2608]
[1742302647260,3.0,1900.7,1900.3,5.26206]
[1742302647455,3.0,1900.5,1900.4,5.26202]
[1742302648506,7.68033156,1900.5,1900.4,5.26202]
[1742302652135,7.964,1900.5,1900.4,5.26202]
[1742302652318,7.964,1900.5,1900.4,41.06002]
[1742302652847,3.0,1900.5,1900.4,41.06002]
[1742302653049,3.0,1900.5,1900.4,46.218464]
[1742302653253,7.964,1900.5,1900.4,46.218464]
[1742302654734,7.964,1900.5,1900.4,41.06002]
[1742302655163,7.964,1900.5,1900.4,6.06002]
[1742302655868,7.964,1900.5,1900.4,5.26202]
[1742302656229,7.964,1900.5,1900.4,6.05702]
[1742302657670,7.964,1900.5,1900.4,5.26202]
[1742302658863,7.964,1900.5,1900.3,5.26208]
[1742302659043,5.47673156,1900.4,1900.3,5.26208]
[1742302659238,4.68033156,1900.4,1900.3,5.26208]
[1742302662249,5.07400835,1900.4,1900.3,5.26208]
[1742302662954,8.07400835,1900.4,1900.3,5.26208]
[1742302666376,8.60930835,1900.4,1900.3,5.26208]
[1742302667593,8.07400835,1900.4,1900.3,5.26208]
[1742302669573,8.60930835,1900.4,1900.3,5.26232]
[1742302670553,8.87286158,1900.4,1900.3,5.26232]
[1742302671156,8.60930835,1900.4,1900.3,5.26232]
[1742302671981,8.60930835,1900.4,1900.2,5.26242]
[1742302672148,8.87506881,1900.4,1900.2,5.26242]
[1742302672548,3.0,1900.3,1900.2,5.26242]
[1742302673446,3.0,1900.3,1900.1,10.52555]
[1742302673646,9.64533156,1900.2,1900.1,10.52555]
[1742302673950,9.64533156,1900.2,1900.1,5.26277]
[1742302674975,12.64533156,1900.2,1900.1,5.26277]
[1742302675290,12.64533156,1900.2,1900.0,5.26306]
[1742302675497,5.21563156,1900.1,1900.0,5.26306]
[1742302676687,8.21563156,1900.1,1900.0,5.26306]
[1742302677175,7.68033156,1900.1,1900.0,5.26306]
[1742302677393,7.68033156,1900.1,1900.0,6.01786]
[1742302677800,7.68033156,1900.1,1900.0,5.26306]
[1742302680885,7.68033156,1900.1,1899.8,6.08446]
[1742302681099,7.68033156,1899.9,1899.8,5.26366]
[1742302681303,12.64633156,1899.9,1899.8,5.26366]
[1742302682156,7.966,1899.9,1899.8,5.26366]
[1742302682599,12.64633156,1899.9,1899.8,6.08966]
[1742302688765,7.966,1899.9,1899.8,7.225013]
[1742302689063,12.64633156,1899.9,1899.8,7.225013]
[1742302690664,3.0,1899.9,1899.8,7.225013]
[1742302691459,6.02,1900.2,1900.1,5.26288]
[1742302691697,10.986,1900.2,1900.1,5.26288]
[1742302691885,13.986,1900.2,1900.1,5.26288]
[1742302692388,7.966,1900.2,1900.1,5.26288]
[1742302695436,3.0,1900.2,1900.1,6.01388]
[1742302695992,12.64633156,1900.4,1900.3,5.26232]
[1742302696719,7.68033156,1900.4,1900.3,5.26232]
[1742302696941,12.64633156,1900.4,1900.3,5.26232]
[1742302698239,7.966,1900.4,1900.3,6.314801]
[1742302698536,12.64633156,1900.4,1900.3,6.01812]
[1742302699104,12.64633156,1900.4,1900.3,6.00382029]
[1742302699300,12.64633156,1900.4,1900.3,5.24802029]
[1742302700118,13.04693418,1900.4,1900.3,5.24802029]
[1742302701411,8.36660262,1900.4,1900.3,5.24802029]
[1742302701609,13.04693418,1900.4,1900.3,5.24802029]
[1742302701814,3.0,1900.4,1900.3,5.24802029]
[1742302702030,7.68033156,1900.4,1900.3,5.24702029]
[1742302708578,3.0,1900.3,1900.2,5.26249]
[1742302715516,3.0,1900.3,1900.2,6.08769]
[1742302716716,9.64533156,1900.4,1900.3,5.26232]
[1742302716953,12.64533156,1900.4,1900.3,5.26232]
[1742302718699,7.68033156,1900.4,1900.3,5.26232]
[1742302718891,12.64533156,1900.4,1900.3,5.26232]
[1742302719484,9.64533156,1900.4,1900.3,5.26232]
[1742302720329,4.68033156,1900.4,1900.3,5.26232]
[1742302720503,9.02,1900.6,1900.5,5.26177]
[1742302720702,18.66533156,1900.6,1900.5,5.26177]
[1742302721222,13.70033156,1900.6,1900.5,5.26177]
[1742302721393,18.66533156,1900.6,1900.5,5.26177]
[1742302724526,9.64533156,1900.6,1900.5,5.26177]
[1742302725641,4.965,1900.6,1900.5,5.26177]
[1742302725848,9.64533156,1900.6,1900.5,5.26177]
[1742302726143,12.64533156,1900.6,1900.5,5.26177]
[1742302728624,3.0,1900.5,1900.4,5.26193]
[1742302729628,3.5353,1900.5,1900.4,5.26193]
[1742302737162,3.0,1900.5,1900.4,5.26193]
[1742302737837,7.68033156,1900.5,1900.4,5.26193]
[1742302738159,12.64433156,1900.5,1900.4,5.26193]
[1742302738367,12.64433156,1900.5,1900.4,6.04253]
[1742302741739,12.64433156,1900.5,1900.4,5.26193]
[1742302750073,17.409,1900.8,1900.4,5.26193]
[1742302750248,20.409,1900.8,1900.7,5.26121]
[1742302750460,30.05333156,1900.8,1900.7,5.26121]
[1742302751184,30.05333156,1900.8,1900.3,0.8199]
[1742302751185,3.0,1900.7,1900.5,5.26165]
[1742302751381,7.98033156,1900.6,1900.5,5.26165]
[1742302752291,7.68033156,1900.6,1900.5,5.26165]
[1742302757887,4.68033156,1900.6,1900.5,5.26165]
[1742302759198,3.0,1900.7,1900.6,5.26149]
[1742302759373,17.409,1900.8,1900.7,5.26121]
[1742302759699,22.373,1900.8,1900.7,5.26121]
[1742302759998,25.18842674,1900.8,1900.7,5.26121]
[1742302760362,20.22442674,1900.8,1900.7,5.26121]
[1742302760768,20.22442674,1900.8,1900.7,6.39381]
[1742302760968,2.81542674,1900.8,1900.7,7.17501]
[1742302761231,4.69053999,1900.9,1900.8,5.26082]
[1742302761518,4.964,1901.0,1900.9,5.26066]
[1742302761662,9.65453999,1901.0,1900.9,5.26066]
[1742302764003,12.65453999,1901.0,1900.9,5.26066]
[1742302764192,13.05020958,1901.0,1900.9,5.26066]
[1742302767188,13.04920958,1901.0,1900.9,5.26066]
[1742302774730,13.04920958,1901.0,1900.9,6.01426]
[1742302774936,12.65353999,1901.0,1900.9,6.01426]
[1742302780253,7.69053999,1901.0,1900.9,10.641768]
[1742302780747,3.0,1901.0,1900.9,6.01426]
[1742302780960,3.0,1901.0,1900.9,41.01426]
[1742302781656,7.69053999,1901.0,1900.9,41.01426]
[1742302783134,5.81393707,1901.0,1900.9,41.01426]
[1742302785257,5.81393707,1901.0,1900.9,6.01426]
[1742302786667,3.0,1900.9,1900.4,0.7835]
[1742302786823,7.77593707,1900.8,1900.7,5.26121]
[1742302789253,9.65363537,1900.8,1900.7,5.26121]
[1742302791642,3.0,1900.7,1900.6,5.26139]
[1742302795068,9.65363537,1900.8,1900.7,5.26121]
[1742302799469,12.65363537,1900.8,1900.7,5.26121]
[1742302799951,12.65463537,1900.8,1900.7,6.03341]
[1742302800387,3.0,1900.8,1900.7,42.689025]
[1742302800681,15.67463537,1901.0,1900.9,5.26066]
[1742302800889,12.65463537,1901.0,1900.9,5.26066]
[1742302801081,10.73993537,1901.0,1900.8,5.26082]
[1742302801262,10.73993537,1901.0,1900.3,5.26232]
[1742302801583,3.0,1900.9,1900.7,10.52207]
[1742302801743,0.5353,1900.8,1900.4,0.8008]
[1742302801943,4.963,1900.7,1900.4,0.8008]
[1742302802144,8.35418839,1900.7,1900.6,5.2614]
[1742302802339,3.0,1900.6,1900.4,10.52394]
[1742302802645,4.69163537,1900.5,1900.4,5.26192]
[1742302803047,4.69163537,1900.5,1900.4,6.314332]
[1742302803277,3.0,1900.6,1900.5,5.26177]
[1742302804598,3.0,1900.6,1900.5,6.02357]
[1742302805094,4.963,1900.7,1900.6,5.26149]
[1742302805296,3.0,1900.8,1900.7,5.26121]
[1742302805499,12.65463537,1900.8,1900.7,5.26121]
[1742302807165,12.65463537,1900.8,1900.6,10.52286]
[1742302807673,12.65463537,1900.8,1900.6,10.52271]
[1742302808279,12.65463537,1900.8,1900.7,5.26121]
[1742302808996,12.65463537,1900.8,1900.6,5.26134]
[1742302809297,0.5353,1900.7,1900.5,5.26174]
[1742302809475,4.69163537,1900.6,1900.5,5.26174]
[1742302814079,3.0,1900.5,1900.4,5.26189]
[1742302814292,7.963,1900.5,1900.3,5.26213]
[1742302814490,4.69163537,1900.4,1900.3,5.26213]
[1742302815172,7.69163537,1900.4,1900.3,5.26213]
[1742302816073,3.0,1900.2,1899.9,5.26335]
[1742302816274,7.69163537,1900.0,1899.9,5.26335]
[1742302816585,7.69163537,1900.0,1899.8,45.52725]
[1742302817106,7.69163537,1900.0,1899.9,5.26343]
[1742302817603,8.08814861,1900.0,1899.9,5.26343]
[1742302818307,7.69163537,1900.0,1899.9,5.26343]
[1742302818479,7.69163537,1900.0,1899.9,6.842491]
[1742302819308,3.0,1900.0,1899.9,6.842491]
[1742302819507,7.69163537,1900.0,1899.9,6.842491]
[1742302819709,7.69163537,1900.0,1899.9,7.655591]
[1742302820012,3.0,1900.0,1899.9,7.655591]
[1742302820305,7.963,1900.1,1900.0,5.26315]
[1742302820603,12.65463537,1900.1,1900.0,5.26315]
[1742302827130,9.65463537,1900.1,1900.0,5.26315]
[1742302832217,9.65463537,1900.1,1900.0,6.397118]
[1742302834894,9.65463537,1900.1,1900.0,5.26315]
[1742302835233,12.65463537,1900.1,1900.0,5.26315]
[1742302836631,7.963,1900.1,1900.0,6.05155]
[1742302836835,3.0,1900.1,1900.0,6.05155]
[1742302837039,5.08972991,1900.3,1900.2,5.2626]
[1742302837345,20.41,1900.5,1900.4,5.26205]
[1742302837855,27.06563537,1900.5,1900.4,5.26205]
[1742302838028,22.10163537,1900.5,1900.4,6.314476]
[1742302838205,22.10163537,1900.5,1900.4,5.26205]
[1742302840644,22.63693537,1900.5,1900.4,5.26205]
[1742302842033,22.10163537,1900.5,1900.4,5.26205]
[1742302842625,25.10163537,1900.5,1900.4,5.26205]
[1742302843330,25.10163537,1900.5,1900.3,5.26221]
[1742302843540,25.63693537,1900.5,1900.3,10.52444]
[1742302843705,25.63693537,1900.5,1900.4,5.26205]
[1742302843906,25.63693537,1900.5,1900.3,10.52442]
[1742302844208,3.0,1900.4,1900.2,5.26245]
[1742302844409,9.65463537,1900.3,1900.2,5.26245]
[1742302845135,12.65463537,1900.3,1900.2,5.26245]
[1742302845338,3.0,1900.2,1900.1,5.26286]
[1742302849203,3.5353,1900.2,1900.0,5.26314]
[1742302849543,7.69163537,1900.1,1900.0,5.26314]
[1742302850553,7.69163537,1900.1,1899.9,10.52674]
[1742302850713,4.963,1900.0,1899.9,5.26332]
[1742302852105,7.963,1900.0,1899.9,5.26332]
[1742302856544,7.963,1900.0,1899.8,5.26359]
[1742302856747,3.0,1899.9,1899.8,5.01447474]
[1742302856911,3.0,1899.9,1899.7,5.26389]
[1742302857112,4.69163537,1899.8,1899.7,5.26389]
[1742302857811,4.69163537,1899.8,1899.7,10.52772]
[1742302858321,7.69163537,1899.8,1899.7,10.52772]
[1742302858517,8.46079891,1899.8,1899.7,5.26383]
[1742302861661,10.52805,1899.6,1899.5,5.27453]
[1742302861860,12.65563537,1899.6,1899.5,5.27453]
[1742302862065,12.65563537,1899.6,1899.5,0.01]
[1742302862360,13.46585981,1899.6,1899.5,0.01]
[1742302864733,14.01585981,1899.6,1899.5,0.01]
[1742302865235,20.03585981,1899.6,1899.5,0.01]
[1742302865566,0.5353,1899.4,1899.2,5.2652]
[1742302865740,9.65563537,1899.3,1899.1,5.26554]
[1742302865946,9.65563537,1899.3,1899.1,10.53099]
[1742302866270,12.65563537,1899.3,1899.2,5.26537]
[1742302866973,12.92309149,1899.3,1899.2,5.26537]
[1742302867337,12.65563537,1899.3,1899.2,5.26537]
[1742302867533,12.65663537,1899.3,1899.2,5.26537]
[1742302871747,3.0,1899.2,1899.1,5.26545]
[1742302872967,0.5353,1899.8,1899.5,5.26438]
[1742302873176,3.40188681,1899.7,1899.6,5.26418]
[1742302873356,3.40188681,1899.7,1899.6,5.26423]
[1742302873357,4.965,1899.7,1899.6,5.26423]
[1742302873671,5.48761477,1899.7,1899.6,5.26423]
[1742302874472,12.65663537,1899.7,1899.6,6.08713]
[1742302875774,7.965,1899.7,1899.6,6.08713]
[1742302875955,7.69163537,1899.7,1899.6,6.08713]
[1742302877157,7.69163537,1899.7,1899.6,5.26423]
[1742302878492,7.69163537,1899.7,1899.5,5.26442]
[1742302878493,8.26423,1899.6,1899.5,5.26442]
[1742302878692,12.65663537,1899.6,1899.5,5.26442]
[1742302880494,13.20663537,1899.6,1899.4,5.2647]
[1742302880676,13.74193537,1899.6,1899.4,10.52937]
[1742302881077,13.74193537,1899.6,1899.4,5.26467]
[1742302881601,13.74193537,1899.6,1899.5,5.26454]
[1742302882098,13.74193537,1899.6,1899.4,10.52933]
[1742302882401,13.74193537,1899.6,1899.3,5.26498]
[1742302882701,7.69163537,1899.4,1899.3,10.52996]
[1742302882913,7.69163537,1899.4,1899.3,5.26498]
[1742302884396,5.24163537,1899.4,1899.2,5.13204386]
[1742302884602,5.73416354,1899.3,1899.2,5.13204386]
[1742302885299,6.13335024,1899.3,1899.2,5.13204386]
[1742302885503,10.05582207,1899.3,1899.2,5.13204386]
[1742302886897,3.0,1899.2,1899.1,5.26562]
[1742302890200,3.0,1899.2,1899.1,6.06742]
[1742302892430,10.06221197,1899.3,1899.2,5.26537]
[1742302893004,9.65663537,1899.3,1899.2,5.26537]
[1742302893291,9.65663537,1899.3,1899.2,6.08817]
[1742302893536,0.38953324,1899.8,1899.7,5.26398]
[1742302893720,5.08116861,1899.8,1899.7,5.26398]
[1742302894025,12.65663537,1899.8,1899.7,5.26398]
[1742302894909,17.418,1900.0,1899.8,5.26371]
[1742302895085,9.65663537,1900.1,1900.0,6.02285]
[1742302895522,12.65663537,1900.1,1900.0,6.02285]
[1742302895717,9.65663537,1900.1,1900.0,6.02285]
[1742302895914,4.69163537,1900.1,1900.0,6.5830156]
[1742302896237,9.65763537,1900.3,1900.2,5.2626]
[1742302896728,13.20763537,1900.3,1900.2,5.2626]
[1742302897033,3.0,1900.2,1900.1,5.26281]
[1742302897186,10.74293537,1900.3,1900.1,10.52552]
[1742302897413,3.0,1900.2,1900.1,5.26271]
[1742302897941,3.0,1900.2,1900.0,5.26305]
[1742302898145,7.69163537,1900.1,1900.0,10.52602]
[1742302899141,7.972,1900.1,1900.0,10.52602]
[1742302899308,12.66363537,1900.1,1900.0,10.52602]
[1742302900042,7.972,1900.1,1900.0,11.578622]
[1742302900249,3.0,1900.1,1900.0,12.373522]
[1742302901051,4.69163537,1900.3,1900.2,5.26249]
[1742302901260,7.69163537,1900.3,1900.2,5.26249]
[1742302901645,7.69163537,1900.3,1900.2,6.01619]
[1742302901833,4.69163537,1900.5,1900.4,5.26205]
[1742302902033,9.66363537,1900.5,1900.4,5.26205]
[1742302902255,12.66363537,1900.5,1900.4,5.26205]
[1742302902436,7.69163537,1900.5,1900.4,5.26205]
[1742302903153,27.08163537,1900.6,1900.5,5.26177]
[1742302903361,27.08163537,1900.6,1900.5,5.787975]
[1742302903745,9.66363537,1900.6,1900.5,5.787975]
[1742302903953,4.69163537,1900.6,1900.5,5.787975]
[1742302904858,4.69163537,1900.6,1900.5,5.26177]
[1742302908471,4.69163537,1900.6,1900.5,6.04557]
[1742302909035,4.69163537,1900.6,1900.5,5.26177]
[1742302914046,4.69163537,1900.6,1900.5,6.01527]
[1742302915461,3.0,1900.8,1900.7,6.02231]
[1742302915654,7.69163537,1900.8,1900.7,6.02231]
[1742302915855,7.69163537,1900.8,1900.7,5.26121]
[1742302920068,7.962,1900.9,1900.8,5.26094]
[1742302922565,12.65363537,1900.9,1900.7,5.26121]
[1742302922774,4.69163537,1900.8,1900.7,10.52224]
[1742302923673,9.65363537,1900.8,1900.7,10.52224]
[1742302925444,9.65363537,1900.8,1900.7,11.30214]
[1742302925767,4.69163537,1900.8,1900.7,11.30214]
[1742302928477,4.69163537,1900.8,1900.7,10.52224]
[1742302929885,3.40030856,1901.1,1900.5,5.26176]
[1742302929886,7.962,1901.1,1901.0,5.26038]
[1742302930100,12.65363537,1901.1,1901.0,5.26038]
[1742302932204,5.26038,1901.0,1900.8,10.52174]
[1742302932358,4.69163537,1900.9,1900.8,5.26083]
[1742302935005,4.69163537,1900.9,1900.8,6.06183]
[1742302935779,4.69163537,1900.9,1900.8,5.26083]
[1742302939613,4.69163537,1900.9,1900.8,6.06673]
[1742302942575,3.26401866,1901.3,1901.2,5.25983]
[1742302942808,12.91665403,1901.3,1901.2,5.25983]
[1742302944491,12.91665403,1901.3,1901.1,5.25999]
[1742302944492,3.0,1901.2,1901.1,5.25999]
[1742302944818,0.55,1901.1,1900.9,5.26053]
[1742302944990,9.65263537,1901.0,1900.9,5.26053]
[1742302948713,12.65263537,1901.0,1900.6,35.8278]
[1742302948931,12.65263537,1901.0,1900.6,40.26143]
[1742302948932,4.69163537,1900.7,1900.6,40.26143]
[1742302951388,9.65263537,1900.7,1900.6,40.26143]
[1742302954621,9.65263537,1900.7,1900.6,5.26143]
[1742302957011,4.961,1900.7,1900.6,5.26143]
[1742302957215,9.65263537,1900.7,1900.6,7.107938]
[1742302959938,4.961,1900.7,1900.6,7.107938]
[1742302960239,6.57,1901.1,1901.0,5.26038]
[1742302960240,4.69163537,1901.1,1901.0,5.26038]
[1742302960435,4.961,1901.1,1901.0,5.26038]
[1742302960645,7.961,1901.1,1901.0,5.26038]
[1742302960840,7.961,1901.1,1901.0,6.393633]
[1742302961037,6.02,1901.5,1901.4,5.25928]
[1742302961230,9.91467564,1901.5,1901.4,5.25907]
[1742302961402,12.91467564,1901.5,1901.4,5.25907]
[1742302961934,9.91467564,1901.5,1901.4,5.25907]
[1742302962239,12.91467564,1901.5,1901.4,5.25907]
[1742302962612,9.65263537,1901.5,1901.4,5.25907]
[1742302962812,9.65263537,1901.5,1901.4,6.05797]
[1742302963029,9.65263537,1901.5,1901.4,7.189722]
[1742302963234,7.69163537,1901.5,1901.4,7.189722]
[1742302963540,4.69163537,1901.5,1901.4,7.189722]
[1742302963719,7.69163537,1901.5,1901.4,7.189722]
[1742302964437,4.69163537,1901.6,1901.5,5.259]
[1742302964625,4.69163537,1901.7,1901.6,5.25862]
[1742302964826,7.69163537,1901.7,1901.6,5.25862]
[1742302965213,4.69163537,1901.7,1901.6,5.25862]
[1742302965613,7.69163537,1901.7,1901.6,5.25862]
[1742302966445,0.55,1902.1,1902.0,5.25762]
[1742302966614,10.20163537,1902.1,1902.0,5.25762]
[1742302967343,4.69163537,1902.1,1902.0,5.25762]
[1742302967550,7.69163537,1902.1,1902.0,5.25762]
[1742302967844,12.65163537,1902.1,1902.0,5.25762]
[1742302968615,7.96,1902.1,1902.0,5.25762]
[1742302968816,12.65163537,1902.1,1902.0,5.25762]
[1742302969552,12.65163537,1902.1,1901.9,5.25785]
[1742302969553,3.0,1902.0,1901.9,5.25785]
[1742302970944,4.69163537,1902.1,1902.0,5.25762]
[1742302971251,9.65163537,1902.1,1901.9,5.25776]
[1742302971648,10.05477528,1902.1,1901.9,10.51552]
[1742302971853,10.05477528,1902.1,1902.0,5.25762]
[1742302972247,13.05477528,1902.1,1902.0,5.25762]
[1742302973957,10.05477528,1902.1,1902.0,5.25762]
[1742302974133,9.65163537,1902.1,1902.0,5.25762]
[1742302974338,4.69163537,1902.1,1902.0,5.25762]
[1742302974655,9.65063537,1902.1,1902.0,5.25762]
[1742302975355,9.65063537,1902.1,1902.0,6.01272]
[1742302975745,4.69163537,1902.1,1902.0,7.139768]
[1742302975951,4.69163537,1902.3,1902.2,5.25707]
[1742302976199,9.65063537,1902.3,1902.2,5.25707]
[1742302976844,4.69163537,1902.3,1902.2,6.01827]
[1742302977156,6.5553,1902.7,1902.4,5.25651]
[1742302977157,4.69163537,1902.5,1902.4,5.25651]
[1742302977384,4.69163537,1902.5,1902.4,6.01771]
[1742302983245,7.69163537,1902.5,1902.4,6.01771]
[1742302985785,3.0,1902.5,1902.4,6.01771]
[1742302985963,12.64863537,1902.7,1902.6,5.25596]
[1742302986147,7.69163537,1902.7,1902.6,6.06546]
[1742302986351,4.69163537,1902.7,1902.6,6.06546]
[1742302988344,7.69163537,1902.7,1902.6,5.25596]
[1742302989548,5.22143685,1902.9,1902.6,5.25596]
[1742302989549,4.957,1902.9,1902.8,5.25541]